{"text_format":"3","workbook":"xlsx","n_sheets":2,"sheets":["1. Форма сбора","Выпадающие списки"],"not_rendered":{"defined_names":2},"read":"whole","date_system":"1900"}

{"sheet":"1. Форма сбора","index":0,"n_rows":50,"n_cols":30,"rows_kept":50,"merged":[[1,0,2,0],[1,1,1,3],[1,5,2,5],[1,6,1,9],[1,10,1,13],[1,14,1,18],[1,19,1,22],[1,23,1,26],[1,28,2,28],[1,29,2,29]]}
["Занятость выпускников 2025 года (сбор октябрь 2025 года)"]
["Субъекты РФ","Предзаполнено в соответствии с прошлым сбором (письмо № 05-201 от 22.01.2025)",null,null,"Предзаполнено в соответствии с прошлым сбором (письмо № 05-206 от 22.01.2025)","Суммарный выпуск 2025 г. (человек)\nвне зависимости от финансовой основы обучения, формы обучения, ведомственной принадлежности организации","Трудоустроены (на текущую дату)",{"$nulls":3},"Планируют трудоустроиться (прогноз на 3 месяца)",{"$nulls":3},"Иная форма занятости",{"$nulls":4},"Прочее, редкие жизненные обстоятельства",{"$nulls":3},"Зона риска ",{"$nulls":3},"","ПРОВЕРКА \n(сумма по видам деятельности (кроме граф в том числе) должна быть равна суммарному выпуску)","ПРОВЕРКА \n(значения в графах \"из них\" не должны превыштать значения, из которых происходят)"]
[null,"Код и наименование профессии, специальности","Выпуск 2024","Из них: лица с ОВЗ и инвалиды, дети-инвалиды","Из них: имеют заключенный договор о целевом обучении",null,"Трудоустроены \n(в соответствии с трудовым законодательством, законодательством об обязательном пенсионном страховании)","из них (из 3): трудоустроены по полученной профессии, специальности","из них (из 3): продолжают обучение","из них (из 3): проходят службу в армии на контрактной основе, в органах внутренних дел, Государственной противопожарной службе, органах по контролю за оборотом наркотических средств и психотропных веществ, учреждениях и органах уголовно-исполнительной системы, войсках национальной гвардии Российской Федерации, органах принудительного исполнения Российской Федерации ","Будут трудоустроены (в соответствии с трудовым законодательством, законодательством  об обязательном пенсионном страховании)","из них (из 4): будут трудоустроены по полученной профессии, специальности","из них (из 4): продолжат обучение","из них (из 4): будут проходить службу в армии на контрактной основе, в органах внутренних дел, Государственной противопожарной службе, органах по контролю за оборотом наркотических средств и психотропных веществ, учреждениях и органах уголовно-исполнительной системы, войсках национальной гвардии Российской Федерации, органах принудительного исполнения Российской Федерации ","Продолжат обучение и не трудоустроились (не планируют трудоустройство, предпринимательство)","Призваны (будут призваны) в Вооруженные Силы РФ","Находятся (будут находиться) в отпуске по уходу за ребенком","Зарегистрированы (планируют зарегистрироваться) в качестве индивидуального предпринимателя","Оформили (планируют оформить) самозанятость","Находятся под следствием, отбывают наказание","Ухаживают за больными родственниками (иные семейные обстоятельства)","Переехали (планируют переезд) за пределы Российской Федерации","Тяжелое состояние здоровья, не позволяющее трудоустраиваться; смерть","Зарегистрированы в центрах занятости в качестве безработных (получают пособие по безработице)","Не имеют мотивации к трудоустройству и не планируют трудоустраиваться, в том числе по причинам получения иных социальных льгот","Отсутствует спрос на специалистов в регионе, находятся в поиске работы","Теневая занятость","Принимаемые меры по содействию трудоустройству выпускников"]
["Субъекты РФ","1","1.1","1.2","1.3","2","3","3.1","3.2","3.3","4","4.1","4.2","4.3","5","6","7","8","9","10","11","12","13","14","15","16","17","18","Проверка 1","Проверка 2"]
[null,"Один вариант из выпадающего спсика","Предзаполнено, корректировке не подлежит","Предзаполнено, корректировке не подлежит","Предзаполнено, корректировке не подлежит","Сумма гр.2= гр.3+гр.4+гр.5+гр.6+гр.7+гр.8+гр.9+гр.10+гр.11+гр.12+гр.13+гр.14+гр.15+гр.16+гр.17","целое число","целое число\n гр.3.1 <= гр.3","целое число\n гр.3.2 <= гр.3","целое число \nгр.3.3 <= гр.3","целое число","целое число \nгр.4.1 <= гр.4","целое число\n гр.4.2 <= гр.4","целое число\n гр.4.3 <= гр.4","целое число","целое число","целое число","целое число","целое число","целое число","целое число","целое число","целое число","целое число","целое число","целое число","целое число","Несколько вариантов из списка","Проверка 1","Проверка 2"]
["Республика Карелия","36.02.01 Ветеринария",{"$nulls":3},{"$f":"SUM('1. Форма сбора'!$G6,'1. Форма сбора'!$K6,'1. Форма сбора'!$O6:$AB6)","v":12},11,11,4,0,0,0,0,0,0,0,1,0,0,0,0,0,0,0,0,0,0,null,{"$f":"IF(SUM('1. Форма сбора'!$G6,'1. Форма сбора'!$K6,'1. Форма сбора'!$O6:$AA6)>='1. Форма сбора'!$F6,\"Проверка пройдена\",\"Внимание! Сумма по видам деятельности (кроме граф в том числе) должна быть равна суммарному выпуску\")","v":"Проверка пройдена"},{"$f":"IF(G6<H6,\"Внимание! Значения в графе 3.1 не могут превышать значения в графе 3\",IF(G6<I6,\"Внимание! Значения в графе 3.2 не могут превышать значения в графе 3\",IF(G6<J6,\"Внимание! Значения в графе 3.3 не могут превышать значения в графе 3\",IF(K6<L6,\"Внимание! Значения в графе 4.1 не могут превышать значения в графе 4\",IF(K6<M6,\"Внимание! Значения в графе 4.2 не могут превышать значения в графе 4\",IF(K6<N6,\"Внимание! Значения в графе 4.3 не могут превышать значения в графе 4\",\"Проверка пройдена\"))))))","v":"Проверка пройдена"}]
["Республика Карелия","08.02.01 Строительство и эксплуатация зданий и сооружений",{"$nulls":3},{"$f":"SUM('1. Форма сбора'!$G7,'1. Форма сбора'!$K7,'1. Форма сбора'!$O7:$AB7)","v":16},3,3,0,0,0,0,0,0,1,11,1,0,0,0,0,0,0,0,0,0,0,null,{"$f":"IF(SUM('1. Форма сбора'!$G7,'1. Форма сбора'!$K7,'1. Форма сбора'!$O7:$AA7)>='1. Форма сбора'!$F7,\"Проверка пройдена\",\"Внимание! Сумма по видам деятельности (кроме граф в том числе) должна быть равна суммарному выпуску\")","v":"Проверка пройдена"},"Проверка пройдена"]
["Республика Карелия","35.02.08 Электрификация и автоматизация сельского хозяйства",{"$nulls":3},{"$f":"SUM('1. Форма сбора'!$G8,'1. Форма сбора'!$K8,'1. Форма сбора'!$O8:$AB8)","v":18},4,2,0,2,0,0,0,0,0,14,0,0,0,0,0,0,0,0,0,0,0,null,{"$f":"IF(SUM('1. Форма сбора'!$G8,'1. Форма сбора'!$K8,'1. Форма сбора'!$O8:$AA8)>='1. Форма сбора'!$F8,\"Проверка пройдена\",\"Внимание! Сумма по видам деятельности (кроме граф в том числе) должна быть равна суммарному выпуску\")","v":"Проверка пройдена"},"Проверка пройдена"]
["Республика Карелия","35.02.16 Эксплуатация и ремонт сельскохозяйственной техники и оборудования",{"$nulls":3},{"$f":"SUM('1. Форма сбора'!$G9,'1. Форма сбора'!$K9,'1. Форма сбора'!$O9:$AB9)","v":10},1,1,0,0,0,0,0,0,0,9,0,0,0,0,0,0,0,0,0,0,0,null,{"$f":"IF(SUM('1. Форма сбора'!$G9,'1. Форма сбора'!$K9,'1. Форма сбора'!$O9:$AA9)>='1. Форма сбора'!$F9,\"Проверка пройдена\",\"Внимание! Сумма по видам деятельности (кроме граф в том числе) должна быть равна суммарному выпуску\")","v":"Проверка пройдена"},"Проверка пройдена"]
["Республика Карелия","43.02.15 Поварское и кондитерское дело",{"$nulls":3},{"$f":"SUM('1. Форма сбора'!$G10,'1. Форма сбора'!$K10,'1. Форма сбора'!$O10:$AB10)","v":15},5,5,0,0,0,0,0,0,5,5,0,0,0,0,0,0,0,0,0,0,0,null,{"$f":"IF(SUM('1. Форма сбора'!$G10,'1. Форма сбора'!$K10,'1. Форма сбора'!$O10:$AA10)>='1. Форма сбора'!$F10,\"Проверка пройдена\",\"Внимание! Сумма по видам деятельности (кроме граф в том числе) должна быть равна суммарному выпуску\")","v":"Проверка пройдена"},"Проверка пройдена"]
["Республика Карелия","43.02.10 Туризм",{"$nulls":3},{"$f":"SUM('1. Форма сбора'!$G11,'1. Форма сбора'!$K11,'1. Форма сбора'!$O11:$AB11)","v":24},19,19,0,0,0,0,0,0,0,2,3,0,0,0,0,0,0,0,0,0,0,null,{"$f":"IF(SUM('1. Форма сбора'!$G11,'1. Форма сбора'!$K11,'1. Форма сбора'!$O11:$AA11)>='1. Форма сбора'!$F11,\"Проверка пройдена\",\"Внимание! Сумма по видам деятельности (кроме граф в том числе) должна быть равна суммарному выпуску\")","v":"Проверка пройдена"},"Проверка пройдена"]
["Республика Карелия","43.02.14 Гостиничное дело",{"$nulls":3},{"$f":"SUM('1. Форма сбора'!$G12,'1. Форма сбора'!$K12,'1. Форма сбора'!$O12:$AB12)","v":16},9,8,0,1,0,0,0,0,0,4,3,0,0,0,0,0,0,0,0,0,0,null,{"$f":"IF(SUM('1. Форма сбора'!$G12,'1. Форма сбора'!$K12,'1. Форма сбора'!$O12:$AA12)>='1. Форма сбора'!$F12,\"Проверка пройдена\",\"Внимание! Сумма по видам деятельности (кроме граф в том числе) должна быть равна суммарному выпуску\")","v":"Проверка пройдена"},"Проверка пройдена"]
["Республика Карелия","09.02.07 Информационные системы и программирование",{"$nulls":3},{"$f":"SUM('1. Форма сбора'!$G13,'1. Форма сбора'!$K13,'1. Форма сбора'!$O13:$AB13)","v":23},12,12,0,0,0,0,0,0,2,9,0,0,0,0,0,0,0,0,0,0,0,null,{"$f":"IF(SUM('1. Форма сбора'!$G13,'1. Форма сбора'!$K13,'1. Форма сбора'!$O13:$AA13)>='1. Форма сбора'!$F13,\"Проверка пройдена\",\"Внимание! Сумма по видам деятельности (кроме граф в том числе) должна быть равна суммарному выпуску\")","v":"Проверка пройдена"},{"$f":"IF(G13<H13,\"Внимание! Значения в графе 3.1 не могут превышать значения в графе 3\",IF(G13<I13,\"Внимание! Значения в графе 3.2 не могут превышать значения в графе 3\",IF(G13<J13,\"Внимание! Значения в графе 3.3 не могут превышать значения в графе 3\",IF(K13<L13,\"Внимание! Значения в графе 4.1 не могут превышать значения в графе 4\",IF(K13<M13,\"Внимание! Значения в графе 4.2 не могут превышать значения в графе 4\",IF(K13<N13,\"Внимание! Значения в графе 4.3 не могут превышать значения в графе 4\",\"Проверка пройдена\"))))))","v":"Проверка пройдена"}]
["Республика Карелия","21.01.08 Машинист на открытых горных работах",{"$nulls":3},{"$f":"SUM('1. Форма сбора'!$G14,'1. Форма сбора'!$K14,'1. Форма сбора'!$O14:$AB14)","v":18},4,4,0,0,0,0,0,0,0,14,0,0,0,0,0,0,0,0,0,0,0,null,{"$f":"IF(SUM('1. Форма сбора'!$G14,'1. Форма сбора'!$K14,'1. Форма сбора'!$O14:$AA14)>='1. Форма сбора'!$F14,\"Проверка пройдена\",\"Внимание! Сумма по видам деятельности (кроме граф в том числе) должна быть равна суммарному выпуску\")","v":"Проверка пройдена"},"Проверка пройдена"]
["Республика Карелия","23.01.17 Мастер по ремонту и обслуживанию автомобилей",{"$nulls":3},30,20,18,0,2,0,0,0,0,0,10,0,0,0,0,0,0,0,0,0,0,0,null,{"$f":"IF(SUM('1. Форма сбора'!$G15,'1. Форма сбора'!$K15,'1. Форма сбора'!$O15:$AA15)>='1. Форма сбора'!$F15,\"Проверка пройдена\",\"Внимание! Сумма по видам деятельности (кроме граф в том числе) должна быть равна суммарному выпуску\")","v":"Проверка пройдена"},"Проверка пройдена"]
["Республика Карелия","35.01.13 Тракторист-машинист сельскохозяйственного производства",{"$nulls":3},21,5,5,0,0,0,0,0,0,0,16,0,0,0,0,0,0,0,0,0,0,0,null,{"$f":"IF(SUM('1. Форма сбора'!$G16,'1. Форма сбора'!$K16,'1. Форма сбора'!$O16:$AA16)>='1. Форма сбора'!$F16,\"Проверка пройдена\",\"Внимание! Сумма по видам деятельности (кроме граф в том числе) должна быть равна суммарному выпуску\")","v":"Проверка пройдена"},"Проверка пройдена"]
["Республика Карелия","43.01.09 Повар, кондитер",{"$nulls":3},{"$f":"SUM('1. Форма сбора'!$G17,'1. Форма сбора'!$K17,'1. Форма сбора'!$O17:$AB17)","v":17},7,7,0,0,0,0,0,0,2,7,1,0,0,0,0,0,0,0,0,0,0,null,{"$f":"IF(SUM('1. Форма сбора'!$G17,'1. Форма сбора'!$K17,'1. Форма сбора'!$O17:$AA17)>='1. Форма сбора'!$F17,\"Проверка пройдена\",\"Внимание! Сумма по видам деятельности (кроме граф в том числе) должна быть равна суммарному выпуску\")","v":"Проверка пройдена"},"Проверка пройдена"]
["Республика Карелия","09.01.03 Мастер по обработке цифровой информации",{"$nulls":3},{"$f":"SUM('1. Форма сбора'!$G18,'1. Форма сбора'!$K18,'1. Форма сбора'!$O18:$AB18)","v":15},14,12,0,2,0,0,0,0,0,1,0,0,0,0,0,0,0,0,0,0,0,null,{"$f":"IF(SUM('1. Форма сбора'!$G18,'1. Форма сбора'!$K18,'1. Форма сбора'!$O18:$AA18)>='1. Форма сбора'!$F18,\"Проверка пройдена\",\"Внимание! Сумма по видам деятельности (кроме граф в том числе) должна быть равна суммарному выпуску\")","v":"Проверка пройдена"},"Проверка пройдена"]
["Республика Карелия","09.01.03 Оператор информационных систем и ресурсов",{"$nulls":3},{"$f":"SUM('1. Форма сбора'!$G19,'1. Форма сбора'!$K19,'1. Форма сбора'!$O19:$AB19)","v":13},10,9,0,1,0,0,0,0,0,3,0,0,0,0,0,0,0,0,0,0,0,null,{"$f":"IF(SUM('1. Форма сбора'!$G19,'1. Форма сбора'!$K19,'1. Форма сбора'!$O19:$AA19)>='1. Форма сбора'!$F19,\"Проверка пройдена\",\"Внимание! Сумма по видам деятельности (кроме граф в том числе) должна быть равна суммарному выпуску\")","v":"Проверка пройдена"},"Проверка пройдена"]
["Республика Карелия","40.02.01 Право и организация социального обеспечения",{"$nulls":3},{"$f":"SUM('1. Форма сбора'!$G20,'1. Форма сбора'!$K20,'1. Форма сбора'!$O20:$AB20)","v":17},16,16,0,0,0,0,0,0,0,0,1,0,0,0,0,0,0,0,0,0,0,null,{"$f":"IF(SUM('1. Форма сбора'!$G20,'1. Форма сбора'!$K20,'1. Форма сбора'!$O20:$AA20)>='1. Форма сбора'!$F20,\"Проверка пройдена\",\"Внимание! Сумма по видам деятельности (кроме граф в том числе) должна быть равна суммарному выпуску\")","v":"Проверка пройдена"},"Проверка пройдена"]
[{"$nulls":5},{"$f":"SUM('1. Форма сбора'!$G21,'1. Форма сбора'!$K21,'1. Форма сбора'!$O21:$AB21)","v":0},{"$nulls":22},{"$f":"IF(SUM('1. Форма сбора'!$G21,'1. Форма сбора'!$K21,'1. Форма сбора'!$O21:$AA21)>='1. Форма сбора'!$F21,\"Проверка пройдена\",\"Внимание! Сумма по видам деятельности (кроме граф в том числе) должна быть равна суммарному выпуску\")","v":"Проверка пройдена"},"Проверка пройдена"]
[{"$nulls":5},{"$f":"SUM('1. Форма сбора'!$G22,'1. Форма сбора'!$K22,'1. Форма сбора'!$O22:$AB22)","v":0},{"$nulls":22},{"$f":"IF(SUM('1. Форма сбора'!$G22,'1. Форма сбора'!$K22,'1. Форма сбора'!$O22:$AA22)>='1. Форма сбора'!$F22,\"Проверка пройдена\",\"Внимание! Сумма по видам деятельности (кроме граф в том числе) должна быть равна суммарному выпуску\")","v":"Проверка пройдена"},"Проверка пройдена"]
[{"$nulls":5},{"$f":"SUM('1. Форма сбора'!$G23,'1. Форма сбора'!$K23,'1. Форма сбора'!$O23:$AB23)","v":0},{"$nulls":22},{"$f":"IF(SUM('1. Форма сбора'!$G23,'1. Форма сбора'!$K23,'1. Форма сбора'!$O23:$AA23)>='1. Форма сбора'!$F23,\"Проверка пройдена\",\"Внимание! Сумма по видам деятельности (кроме граф в том числе) должна быть равна суммарному выпуску\")","v":"Проверка пройдена"},"Проверка пройдена"]
[{"$nulls":5},{"$f":"SUM('1. Форма сбора'!$G24,'1. Форма сбора'!$K24,'1. Форма сбора'!$O24:$AB24)","v":0},{"$nulls":22},{"$f":"IF(SUM('1. Форма сбора'!$G24,'1. Форма сбора'!$K24,'1. Форма сбора'!$O24:$AA24)>='1. Форма сбора'!$F24,\"Проверка пройдена\",\"Внимание! Сумма по видам деятельности (кроме граф в том числе) должна быть равна суммарному выпуску\")","v":"Проверка пройдена"},"Проверка пройдена"]
[{"$nulls":5},{"$f":"SUM('1. Форма сбора'!$G25,'1. Форма сбора'!$K25,'1. Форма сбора'!$O25:$AB25)","v":0},{"$nulls":22},{"$f":"IF(SUM('1. Форма сбора'!$G25,'1. Форма сбора'!$K25,'1. Форма сбора'!$O25:$AA25)>='1. Форма сбора'!$F25,\"Проверка пройдена\",\"Внимание! Сумма по видам деятельности (кроме граф в том числе) должна быть равна суммарному выпуску\")","v":"Проверка пройдена"},"Проверка пройдена"]
[{"$nulls":5},{"$f":"SUM('1. Форма сбора'!$G26,'1. Форма сбора'!$K26,'1. Форма сбора'!$O26:$AB26)","v":0},{"$nulls":22},{"$f":"IF(SUM('1. Форма сбора'!$G26,'1. Форма сбора'!$K26,'1. Форма сбора'!$O26:$AA26)>='1. Форма сбора'!$F26,\"Проверка пройдена\",\"Внимание! Сумма по видам деятельности (кроме граф в том числе) должна быть равна суммарному выпуску\")","v":"Проверка пройдена"},"Проверка пройдена"]
[{"$nulls":5},{"$f":"SUM('1. Форма сбора'!$G27,'1. Форма сбора'!$K27,'1. Форма сбора'!$O27:$AB27)","v":0},{"$nulls":22},{"$f":"IF(SUM('1. Форма сбора'!$G27,'1. Форма сбора'!$K27,'1. Форма сбора'!$O27:$AA27)>='1. Форма сбора'!$F27,\"Проверка пройдена\",\"Внимание! Сумма по видам деятельности (кроме граф в том числе) должна быть равна суммарному выпуску\")","v":"Проверка пройдена"},"Проверка пройдена"]
[{"$nulls":5},{"$f":"SUM('1. Форма сбора'!$G28,'1. Форма сбора'!$K28,'1. Форма сбора'!$O28:$AB28)","v":0},{"$nulls":22},{"$f":"IF(SUM('1. Форма сбора'!$G28,'1. Форма сбора'!$K28,'1. Форма сбора'!$O28:$AA28)>='1. Форма сбора'!$F28,\"Проверка пройдена\",\"Внимание! Сумма по видам деятельности (кроме граф в том числе) должна быть равна суммарному выпуску\")","v":"Проверка пройдена"},"Проверка пройдена"]
[{"$nulls":5},{"$f":"SUM('1. Форма сбора'!$G29,'1. Форма сбора'!$K29,'1. Форма сбора'!$O29:$AB29)","v":0},{"$nulls":22},{"$f":"IF(SUM('1. Форма сбора'!$G29,'1. Форма сбора'!$K29,'1. Форма сбора'!$O29:$AA29)>='1. Форма сбора'!$F29,\"Проверка пройдена\",\"Внимание! Сумма по видам деятельности (кроме граф в том числе) должна быть равна суммарному выпуску\")","v":"Проверка пройдена"},"Проверка пройдена"]
[{"$nulls":5},{"$f":"SUM('1. Форма сбора'!$G30,'1. Форма сбора'!$K30,'1. Форма сбора'!$O30:$AB30)","v":0},{"$nulls":22},{"$f":"IF(SUM('1. Форма сбора'!$G30,'1. Форма сбора'!$K30,'1. Форма сбора'!$O30:$AA30)>='1. Форма сбора'!$F30,\"Проверка пройдена\",\"Внимание! Сумма по видам деятельности (кроме граф в том числе) должна быть равна суммарному выпуску\")","v":"Проверка пройдена"},"Проверка пройдена"]
[{"$nulls":5},{"$f":"SUM('1. Форма сбора'!$G31,'1. Форма сбора'!$K31,'1. Форма сбора'!$O31:$AB31)","v":0},{"$nulls":22},{"$f":"IF(SUM('1. Форма сбора'!$G31,'1. Форма сбора'!$K31,'1. Форма сбора'!$O31:$AA31)>='1. Форма сбора'!$F31,\"Проверка пройдена\",\"Внимание! Сумма по видам деятельности (кроме граф в том числе) должна быть равна суммарному выпуску\")","v":"Проверка пройдена"},"Проверка пройдена"]
[{"$nulls":5},{"$f":"SUM('1. Форма сбора'!$G32,'1. Форма сбора'!$K32,'1. Форма сбора'!$O32:$AB32)","v":0},{"$nulls":22},{"$f":"IF(SUM('1. Форма сбора'!$G32,'1. Форма сбора'!$K32,'1. Форма сбора'!$O32:$AA32)>='1. Форма сбора'!$F32,\"Проверка пройдена\",\"Внимание! Сумма по видам деятельности (кроме граф в том числе) должна быть равна суммарному выпуску\")","v":"Проверка пройдена"},"Проверка пройдена"]
[{"$nulls":5},{"$f":"SUM('1. Форма сбора'!$G33,'1. Форма сбора'!$K33,'1. Форма сбора'!$O33:$AB33)","v":0},{"$nulls":22},{"$f":"IF(SUM('1. Форма сбора'!$G33,'1. Форма сбора'!$K33,'1. Форма сбора'!$O33:$AA33)>='1. Форма сбора'!$F33,\"Проверка пройдена\",\"Внимание! Сумма по видам деятельности (кроме граф в том числе) должна быть равна суммарному выпуску\")","v":"Проверка пройдена"},"Проверка пройдена"]
[{"$nulls":5},{"$f":"SUM('1. Форма сбора'!$G34,'1. Форма сбора'!$K34,'1. Форма сбора'!$O34:$AB34)","v":0},{"$nulls":22},{"$f":"IF(SUM('1. Форма сбора'!$G34,'1. Форма сбора'!$K34,'1. Форма сбора'!$O34:$AA34)>='1. Форма сбора'!$F34,\"Проверка пройдена\",\"Внимание! Сумма по видам деятельности (кроме граф в том числе) должна быть равна суммарному выпуску\")","v":"Проверка пройдена"},"Проверка пройдена"]
[{"$nulls":5},{"$f":"SUM('1. Форма сбора'!$G35,'1. Форма сбора'!$K35,'1. Форма сбора'!$O35:$AB35)","v":0},{"$nulls":22},{"$f":"IF(SUM('1. Форма сбора'!$G35,'1. Форма сбора'!$K35,'1. Форма сбора'!$O35:$AA35)>='1. Форма сбора'!$F35,\"Проверка пройдена\",\"Внимание! Сумма по видам деятельности (кроме граф в том числе) должна быть равна суммарному выпуску\")","v":"Проверка пройдена"},"Проверка пройдена"]
[{"$nulls":5},{"$f":"SUM('1. Форма сбора'!$G36,'1. Форма сбора'!$K36,'1. Форма сбора'!$O36:$AB36)","v":0},{"$nulls":22},{"$f":"IF(SUM('1. Форма сбора'!$G36,'1. Форма сбора'!$K36,'1. Форма сбора'!$O36:$AA36)>='1. Форма сбора'!$F36,\"Проверка пройдена\",\"Внимание! Сумма по видам деятельности (кроме граф в том числе) должна быть равна суммарному выпуску\")","v":"Проверка пройдена"},"Проверка пройдена"]
[{"$nulls":5},{"$f":"SUM('1. Форма сбора'!$G37,'1. Форма сбора'!$K37,'1. Форма сбора'!$O37:$AB37)","v":0},{"$nulls":22},{"$f":"IF(SUM('1. Форма сбора'!$G37,'1. Форма сбора'!$K37,'1. Форма сбора'!$O37:$AA37)>='1. Форма сбора'!$F37,\"Проверка пройдена\",\"Внимание! Сумма по видам деятельности (кроме граф в том числе) должна быть равна суммарному выпуску\")","v":"Проверка пройдена"},"Проверка пройдена"]
[{"$nulls":5},{"$f":"SUM('1. Форма сбора'!$G38,'1. Форма сбора'!$K38,'1. Форма сбора'!$O38:$AB38)","v":0},{"$nulls":22},{"$f":"IF(SUM('1. Форма сбора'!$G38,'1. Форма сбора'!$K38,'1. Форма сбора'!$O38:$AA38)>='1. Форма сбора'!$F38,\"Проверка пройдена\",\"Внимание! Сумма по видам деятельности (кроме граф в том числе) должна быть равна суммарному выпуску\")","v":"Проверка пройдена"},"Проверка пройдена"]
[{"$nulls":5},{"$f":"SUM('1. Форма сбора'!$G39,'1. Форма сбора'!$K39,'1. Форма сбора'!$O39:$AB39)","v":0},{"$nulls":22},{"$f":"IF(SUM('1. Форма сбора'!$G39,'1. Форма сбора'!$K39,'1. Форма сбора'!$O39:$AA39)>='1. Форма сбора'!$F39,\"Проверка пройдена\",\"Внимание! Сумма по видам деятельности (кроме граф в том числе) должна быть равна суммарному выпуску\")","v":"Проверка пройдена"},"Проверка пройдена"]
[{"$nulls":5},{"$f":"SUM('1. Форма сбора'!$G40,'1. Форма сбора'!$K40,'1. Форма сбора'!$O40:$AB40)","v":0},{"$nulls":22},{"$f":"IF(SUM('1. Форма сбора'!$G40,'1. Форма сбора'!$K40,'1. Форма сбора'!$O40:$AA40)>='1. Форма сбора'!$F40,\"Проверка пройдена\",\"Внимание! Сумма по видам деятельности (кроме граф в том числе) должна быть равна суммарному выпуску\")","v":"Проверка пройдена"},"Проверка пройдена"]
[{"$nulls":5},{"$f":"SUM('1. Форма сбора'!$G41,'1. Форма сбора'!$K41,'1. Форма сбора'!$O41:$AB41)","v":0},{"$nulls":22},{"$f":"IF(SUM('1. Форма сбора'!$G41,'1. Форма сбора'!$K41,'1. Форма сбора'!$O41:$AA41)>='1. Форма сбора'!$F41,\"Проверка пройдена\",\"Внимание! Сумма по видам деятельности (кроме граф в том числе) должна быть равна суммарному выпуску\")","v":"Проверка пройдена"},"Проверка пройдена"]
[{"$nulls":5},{"$f":"SUM('1. Форма сбора'!$G42,'1. Форма сбора'!$K42,'1. Форма сбора'!$O42:$AB42)","v":0},{"$nulls":22},{"$f":"IF(SUM('1. Форма сбора'!$G42,'1. Форма сбора'!$K42,'1. Форма сбора'!$O42:$AA42)>='1. Форма сбора'!$F42,\"Проверка пройдена\",\"Внимание! Сумма по видам деятельности (кроме граф в том числе) должна быть равна суммарному выпуску\")","v":"Проверка пройдена"},"Проверка пройдена"]
[{"$nulls":5},{"$f":"SUM('1. Форма сбора'!$G43,'1. Форма сбора'!$K43,'1. Форма сбора'!$O43:$AB43)","v":0},{"$nulls":22},{"$f":"IF(SUM('1. Форма сбора'!$G43,'1. Форма сбора'!$K43,'1. Форма сбора'!$O43:$AA43)>='1. Форма сбора'!$F43,\"Проверка пройдена\",\"Внимание! Сумма по видам деятельности (кроме граф в том числе) должна быть равна суммарному выпуску\")","v":"Проверка пройдена"},"Проверка пройдена"]
[{"$nulls":5},{"$f":"SUM('1. Форма сбора'!$G44,'1. Форма сбора'!$K44,'1. Форма сбора'!$O44:$AB44)","v":0},{"$nulls":22},{"$f":"IF(SUM('1. Форма сбора'!$G44,'1. Форма сбора'!$K44,'1. Форма сбора'!$O44:$AA44)>='1. Форма сбора'!$F44,\"Проверка пройдена\",\"Внимание! Сумма по видам деятельности (кроме граф в том числе) должна быть равна суммарному выпуску\")","v":"Проверка пройдена"},"Проверка пройдена"]
[{"$nulls":5},{"$f":"SUM('1. Форма сбора'!$G45,'1. Форма сбора'!$K45,'1. Форма сбора'!$O45:$AB45)","v":0},{"$nulls":22},{"$f":"IF(SUM('1. Форма сбора'!$G45,'1. Форма сбора'!$K45,'1. Форма сбора'!$O45:$AA45)>='1. Форма сбора'!$F45,\"Проверка пройдена\",\"Внимание! Сумма по видам деятельности (кроме граф в том числе) должна быть равна суммарному выпуску\")","v":"Проверка пройдена"},"Проверка пройдена"]
[{"$nulls":5},{"$f":"SUM('1. Форма сбора'!$G46,'1. Форма сбора'!$K46,'1. Форма сбора'!$O46:$AB46)","v":0},{"$nulls":22},{"$f":"IF(SUM('1. Форма сбора'!$G46,'1. Форма сбора'!$K46,'1. Форма сбора'!$O46:$AA46)>='1. Форма сбора'!$F46,\"Проверка пройдена\",\"Внимание! Сумма по видам деятельности (кроме граф в том числе) должна быть равна суммарному выпуску\")","v":"Проверка пройдена"},"Проверка пройдена"]
[{"$nulls":5},{"$f":"SUM('1. Форма сбора'!$G47,'1. Форма сбора'!$K47,'1. Форма сбора'!$O47:$AB47)","v":0},{"$nulls":22},{"$f":"IF(SUM('1. Форма сбора'!$G47,'1. Форма сбора'!$K47,'1. Форма сбора'!$O47:$AA47)>='1. Форма сбора'!$F47,\"Проверка пройдена\",\"Внимание! Сумма по видам деятельности (кроме граф в том числе) должна быть равна суммарному выпуску\")","v":"Проверка пройдена"},"Проверка пройдена"]
[{"$nulls":5},{"$f":"SUM('1. Форма сбора'!$G48,'1. Форма сбора'!$K48,'1. Форма сбора'!$O48:$AB48)","v":0},{"$nulls":22},{"$f":"IF(SUM('1. Форма сбора'!$G48,'1. Форма сбора'!$K48,'1. Форма сбора'!$O48:$AA48)>='1. Форма сбора'!$F48,\"Проверка пройдена\",\"Внимание! Сумма по видам деятельности (кроме граф в том числе) должна быть равна суммарному выпуску\")","v":"Проверка пройдена"},"Проверка пройдена"]
[{"$nulls":5},{"$f":"SUM('1. Форма сбора'!$G49,'1. Форма сбора'!$K49,'1. Форма сбора'!$O49:$AB49)","v":0},{"$nulls":22},{"$f":"IF(SUM('1. Форма сбора'!$G49,'1. Форма сбора'!$K49,'1. Форма сбора'!$O49:$AA49)>='1. Форма сбора'!$F49,\"Проверка пройдена\",\"Внимание! Сумма по видам деятельности (кроме граф в том числе) должна быть равна суммарному выпуску\")","v":"Проверка пройдена"},"Проверка пройдена"]
[{"$nulls":5},{"$f":"SUM('1. Форма сбора'!$G50,'1. Форма сбора'!$K50,'1. Форма сбора'!$O50:$AB50)","v":0},{"$nulls":22},{"$f":"IF(SUM('1. Форма сбора'!$G50,'1. Форма сбора'!$K50,'1. Форма сбора'!$O50:$AA50)>='1. Форма сбора'!$F50,\"Проверка пройдена\",\"Внимание! Сумма по видам деятельности (кроме граф в том числе) должна быть равна суммарному выпуску\")","v":"Проверка пройдена"},"Проверка пройдена"]

{"sheet":"Выпадающие списки","index":1,"n_rows":625,"n_cols":12,"rows_kept":625,"hidden":true}
["Код и наименование профессии, специальности","Гр 0","Лист 1 гр 18","Лист 2 гр 3","Лист 2 гр 4","Лист 2 гр 7","Лист 2 гр 5,6 \nЛист 3 гр 3","Лист 3 гр 6","Лист 3 гр 7","Лист 3 гр 8","Лист 3 гр 9","Лист 3 гр 10"]
["05.01.01 Гидрометнаблюдатель","Строку необходимо удалить из отчета","Взаимодействие с куратором группы","выпускник из числа лиц с ОВЗ","зрение","трудоустроен по полученной профессии, специальности","да","действует","трудоустроен у работодателя, с которым заключен целевой договор","расторгнут по инициативе выпускника с возмещением заказчику расходов на меры поддержки","отказ выпускника от трудоустройства в связи с низким уровнем заработной платы","трудоустроен у иного работодателя"]
["05.02.01 Картография",null,"Информирование об имеющихся вакансиях","выпускник инвалид, ребенок-инвалид","слух","трудоустроен НЕ по полученной профессии, специальности","нет","расторгнут","будет трудоустроен у работодателя, с которым заключен целевой договор","расторгнут по инициативе выпускника (освобождение от ответственности за неисполнение обязательств по договору)","отказ выпускника от трудоустройства в связи с переездом, удаленностью места работы","будет трудоустроен у иного работодателя"]
["05.02.02 Гидрология",null,"Консультации","выпускник из числа лиц с ОВЗ и инвалид, ребенок-инвалид","опорно-двигательный аппарат","будет трудоустроен по полученной профессии, специальности",null,null,"договор приостановлен (пролонгирован): продолжает обучение по согласованию с работодателем, заключившим договор о целевом обучении","расторгнут по инициативе работодателя с выплатой компенсации","отказ работодателя от трудоустройства в связи с неудовлетворенностью знаниями, умениями, навыками и компетенциями выпускника","продолжает обучение"]
["05.02.03 Метеорология",null,"Направление в ЦЗН",null,"тяжелые нарушения речи","будет трудоустроен НЕ по полученной профессии, специальности",null,null,"договор приостановлен (пролонгирован): призван (будет призван) в Вооруженные Силы РФ","расторгнут по инициативе работодателя (освобождение от ответственности за неисполнение обязательств по договору)","отказ работодателя от трудоустройства в связи с отсутствием вакансий/сокращением штата предприятия","призван (будет призван) в Вооруженные Силы РФ"]
["07.02.01 Архитектура",null,"Проведение информационно-разъяснительной работы",null,"задержка психического развития","продолжит обучение и не трудоустроился (не планирует трудоустройство, предпринимательство)",null,null,"договор приостановлен (пролонгирован): находится (будет находиться) в отпуске по уходу за ребенком","расторгнут по соглашению сторон или по независящим от сторон обстоятельствам","отказ работодателя от трудоустройства и выполнения условий договора (по иным причинам)","находятся (будут находиться) в отпуске по уходу за ребенком"]
["08.01.01 Изготовитель арматурных сеток и каркасов",null,"Проведение социально-психологических тренингов",null,"расстройство аутистического спектра","призван (будет призван) в Вооруженные Силы РФ",null,null,"договор приостановлен (пролонгирован): здоровье, требующее лечения, не позволяющее осуществлять трудовую деятельность",null,"по независящим причинам: выпускник находится под следствием, отбывает наказание","индивидуальный предприниматель"]
["08.01.02 Монтажник трубопроводов",null,"Экскурсии на предприятия",null,"инвалидность вследствие других причин","находится (будет находиться) в отпуске по уходу за ребенком",{"$nulls":4},"по независящим причинам: выпускник осуществляет постоянный уход за ближайшим родственником","самозанятый"]
["08.01.04 Кровельщик",{"$nulls":4},"зарегистрирован (планирует зарегистрироваться) в качестве индивидуального предпринимателя",{"$nulls":4},"по независящим причинам: супруг/супруга выпускника - военнослужащий, проходит службу на другой территории","не может трудоустроиться: находится под следствием, отбывает наказание"]
["08.01.05 Мастер столярно-плотничных и паркетных работ",{"$nulls":4},"оформил (планирует оформить) самозанятость",{"$nulls":4},"по независящим причинам: выпускнику присвоена инвалидность 1 или 2 группы","не может трудоустроиться: ухаживает за больными родственниками, иные семейные обстоятельства"]
["08.01.06 Мастер сухого строительства",{"$nulls":4},"находится под следствием, отбывает наказание",{"$nulls":4},"по независящим причинам: несоблюдение требований законодательства к работникам (медицинские противопоказания, судимость, отказ в допуске к государственной тайне, не прошел аккредитацию специалиста и др.). ","не может трудоустроиться: смерть выпускника, тяжелое состояние здоровья"]
["08.01.07 Мастер общестроительных работ",{"$nulls":4},"ухаживает за больными родственниками (иные семейные обстоятельства)",{"$nulls":4},"по независящим причинам: смерть выпускника, тяжелое состояние здоровья","не имеет мотивации к ведению трудовой деятельности и не планирует трудоустраиваться"]
["08.01.08 Мастер отделочных строительных работ",{"$nulls":4},"переехал (планирует переезд) за пределы Российской Федерации",{"$nulls":5},"переехал (планирует переезд) за пределы РФ"]
["08.01.09 Слесарь по строительно-монтажным работам",{"$nulls":4},"тяжелое состояние здоровья, не позволяющее трудоустраиваться; смерть",{"$nulls":5},"неофициально трудоустроен"]
["08.01.10 Мастер жилищно-коммунального хозяйства",{"$nulls":4},"зарегистрирован в центрах занятости в качестве безработного (получает пособие по безработице)",{"$nulls":5},"отсутствует спрос на специалистов в регионе, находится в поиске работы"]
["08.01.11 Машинист машин и оборудования в производстве цемента",{"$nulls":4},"не имеет мотивацию к трудоустройству и не планирует трудоустраиваться, в том числе по причинам получения иных социальных льгот",{"$nulls":5},"зарегистрирован в центрах занятости в качестве безработного (получает пособие по безработице)"]
["08.01.13 Изготовитель железобетонных изделий",{"$nulls":4},"отсутствует спрос на специалистов в регионе, находится в поиске работы",{"$nulls":5},"не планирует трудоустраиваться, в том числе по причинам получения иных социальных льгот"]
["08.01.14 Монтажник санитарно-технических, вентиляционных систем и оборудования",{"$nulls":4},"теневая занятость"]
["08.01.15 Слесарь по изготовлению деталей и узлов технических систем в строительстве"]
["08.01.16 Электромонтажник по сигнализации, централизации и блокировке"]
["08.01.17 Электромонтажник-наладчик"]
["08.01.18 Электромонтажник электрических сетей и электрооборудования"]
["08.01.19 Электромонтажник по силовым сетям и электрооборудованию"]
["08.01.21 Монтажник электрических подъемников (лифтов)"]
["08.01.22 Мастер путевых машин"]
["08.01.23 Бригадир-путеец"]
["08.01.24 Мастер столярно-плотничных, паркетных и стекольных работ"]
["08.01.25 Мастер отделочных строительных и декоративных работ"]
["08.01.26 Мастер по ремонту и обслуживанию инженерных систем жилищно-коммунального хозяйства"]
["08.01.27 Мастер общестроительных работ"]
["08.01.28 Мастер отделочных строительных и декоративных работ"]
["08.01.29 Мастер по ремонту и обслуживанию инженерных систем жилищно-коммунального хозяйства"]
["08.01.30 Электромонтажник слаботочных систем"]
["08.01.31 Электромонтажник электрических сетей и электрооборудования"]
["08.01.32 Мастер аварийно-восстановительных работ на сетях водоснабжения и водоотведения"]
["08.02.01 Строительство и эксплуатация зданий и сооружений"]
["08.02.02 Строительство и эксплуатация инженерных сооружений"]
["08.02.03 Производство неметаллических строительных изделий и конструкций"]
["08.02.04 Водоснабжение и водоотведение"]
["08.02.05 Строительство и эксплуатация автомобильных дорог и аэродромов"]
["08.02.06 Строительство и эксплуатация городских путей сообщения"]
["08.02.07 Монтаж и эксплуатация внутренних сантехнических устройств, кондиционирования воздуха и вентиляции"]
["08.02.08 Монтаж и эксплуатация оборудования и систем газоснабжения"]
["08.02.09 Монтаж, наладка и эксплуатация электрооборудования промышленных и гражданских зданий"]
["08.02.10 Строительство железных дорог, путь и путевое хозяйство"]
["08.02.11 Управление, эксплуатация и обслуживание многоквартирного дома"]
["08.02.12 Строительство и эксплуатация автомобильных дорог, аэродромов и городских путей сообщения"]
["08.02.13 Монтаж и эксплуатация внутренних сантехнических устройств, кондиционирования воздуха и вентиляции"]
["08.02.14 Эксплуатация и обслуживание многоквартирного дома"]
["08.02.15 Информационное моделирование в строительстве"]
["09.01.01 Наладчик аппаратного и программного обеспечения"]
["09.01.02 Наладчик компьютерных сетей"]
["09.01.03 Мастер по обработке цифровой информации"]
["09.01.03 Оператор информационных систем и ресурсов"]
["09.01.04 Наладчик аппаратных и программных средств инфокоммуникационных систем"]
["09.01.05 Оператор технической поддержки"]
["09.02.01 Компьютерные системы и комплексы"]
["09.02.02 Компьютерные сети"]
["09.02.03 Программирование в компьютерных системах"]
["09.02.04 Информационные системы (по отраслям)"]
["09.02.05 Прикладная информатика (по отраслям)"]
["09.02.06 Сетевое и системное администрирование"]
["09.02.07 Информационные системы и программирование"]
["09.02.08 Интеллектуальные интегрированные системы"]
["09.02.09 Веб-разработка"]
["09.02.10 Разработка компьютерных игр, дополненной и виртуальной реальности"]
["09.02.11 Разработка и управление программным обеспечением"]
["09.02.12 Техническая эксплуатация и сопровождение информационных систем"]
["09.02.13 Интеграция решений с применением технологий искусственного интеллекта"]
["10.02.01 Организация и технология защиты информации"]
["10.02.02 Информационная безопасность телекоммуникационных систем"]
["10.02.03 Информационная безопасность автоматизированных систем"]
["10.02.04 Обеспечение информационной безопасности телекоммуникационных систем"]
["10.02.05 Обеспечение информационной безопасности автоматизированных систем"]
["11.01.01 Монтажник радиоэлектронной аппаратуры и приборов"]
["11.01.02 Радиомеханик"]
["11.01.05 Монтажник связи"]
["11.01.06 Электромонтер оборудования электросвязи и проводного вещания"]
["11.01.07 Электромонтер по ремонту линейно-кабельных сооружений телефонной связи и проводного вещания"]
["11.01.08 Оператор почтовой связи"]
["11.01.08 Оператор связи"]
["11.01.11 Наладчик технологического оборудования (электронная техника)"]
["11.01.14 Оператор автоматической линии сборки радиоэлектронной аппаратуры и приборов"]
["11.02.01 Радиоаппаратостроение"]
["11.02.02 Техническое обслуживание и ремонт радиоэлектронной техники (по отраслям)"]
["11.02.03 Эксплуатация оборудования радиосвязи и электрорадионавигации судов"]
["11.02.04 Радиотехнические комплексы и системы управления космических летательных аппаратов"]
["11.02.05 Аудиовизуальная техника"]
["11.02.06 Техническая эксплуатация транспортного радиоэлектронного оборудования (по видам транспорта)"]
["11.02.07 Радиотехнические информационные системы"]
["11.02.08 Средства связи с подвижными объектами"]
["11.02.09 Многоканальные телекоммуникационные системы"]
["11.02.10 Радиосвязь, радиовещание и телевидение"]
["11.02.11 Сети связи и системы коммутации"]
["11.02.12 Почтовая связь"]
["11.02.13 Твердотельная электроника"]
["11.02.14 Электронные приборы и устройства"]
["11.02.15 Инфокоммуникационные сети и системы связи"]
["11.02.16 Монтаж, техническое обслуживание и ремонт электронных приборов и устройств"]
["11.02.17 Разработка электронных устройств и систем"]
["11.02.18 Системы радиосвязи, мобильной связи и телерадиовещания"]
["11.02.19 Квантовые коммуникации"]
["12.01.02 Оптик-механик"]
["12.01.07 Электромеханик по ремонту и обслуживанию электронной медицинской аппаратуры"]
["12.01.09 Мастер по изготовлению и сборке деталей и узлов оптических и оптико-электронных приборов и систем"]
["12.02.01 Авиационные приборы и комплексы"]
["12.02.03 Радиоэлектронные приборные устройства"]
["12.02.03 Радиоэлектронные приборы и устройства"]
["12.02.04 Электромеханические приборные устройства"]
["12.02.05 Оптические и оптико-электронные приборы и системы"]
["12.02.06 Биотехнические и медицинские аппараты и системы"]
["12.02.07 Монтаж, техническое обслуживание и ремонт медицинской техники"]
["12.02.08 Протезно-ортопедическая и реабилитационная техника"]
["12.02.09 Производство и эксплуатация оптических и оптико-электронных приборов и систем"]
["12.02.10 Монтаж, техническое обслуживание и ремонт биотехнических и медицинских аппаратов и систем"]
["13.01.01 Машинист котлов"]
["13.01.02 Машинист паровых турбин"]
["13.01.03 Электрослесарь по ремонту оборудования электростанций"]
["13.01.04 Слесарь по ремонту оборудования электростанций"]
["13.01.05 Электромонтер по техническому обслуживанию электростанций и сетей"]
["13.01.06 Электромонтер-линейщик по монтажу воздушных линий высокого напряжения и контактной сети"]
["13.01.07 Электромонтер по ремонту электросетей"]
["13.01.10 Электромонтер по ремонту и обслуживанию электрооборудования (по отраслям)"]
["13.01.13 Электромонтажник-схемщик"]
["13.01.14 Электромеханик по лифтам"]
["13.01.15 Машинист энергоблока"]
["13.01.16 Электромонтер по техническому обслуживанию и ремонту оборудования подстанций и сетей"]
["13.01.17 Электрослесарь по ремонту оборудования электростанций"]
["13.02.01 Тепловые электрические станции"]
["13.02.02 Теплоснабжение и теплотехническое оборудование"]
["13.02.03 Электрические станции, сети и системы"]
["13.02.04 Гидроэлектроэнергетические установки"]
["13.02.05 Технология воды, топлива и смазочных материалов на электрических станциях"]
["13.02.06 Релейная защита и автоматизация электроэнергетических систем"]
["13.02.07 Электроснабжение"]
["13.02.07 Электроснабжение (по отраслям)"]
["13.02.08 Электроизоляционная, кабельная и конденсаторная техника"]
["13.02.09 Монтаж и эксплуатация линий электропередачи"]
["13.02.10 Электрические машины и аппараты"]
["13.02.11 Техническая эксплуатация и обслуживание электрического и электромеханического оборудования (по отраслям)"]
["13.02.12 Электрические станции, сети, их релейная защита и автоматизация"]
["13.02.13 Эксплуатация и обслуживание электрического и электромеханического оборудования (по отраслям)"]
["14.02.01 Атомные электрические станции и установки"]
["14.02.02 Радиационная безопасность"]
["15.01.04 Наладчик сварочного и газоплазморезательного оборудования"]
["15.01.05 Сварщик (ручной и частично механизированной сварки (наплавки)"]
["15.01.05 Сварщик (электросварочные и газосварочные работы)"]
["15.01.06 Сварщик на лазерных установках"]
["15.01.08 Наладчик литейного и кузнечного оборудования"]
["15.01.08 Наладчик литейного оборудования"]
["15.01.09 Машинист лесозаготовительных и трелевочных машин"]
["15.01.10 Слесарь по ремонту лесозаготовительного оборудования"]
["15.01.13 Монтажник технологического оборудования (по видам оборудования)"]
["15.01.13 Монтажник-наладчик технологического оборудования"]
["15.01.17 Электромеханик по торговому и холодильному оборудованию"]
["15.01.18 Машинист холодильных установок"]
["15.01.19 Наладчик контрольно-измерительных приборов и автоматики"]
["15.01.20 Слесарь по контрольно-измерительным приборам и автоматике"]
["15.01.21 Электромонтер охранно-пожарной сигнализации"]
["15.01.22 Чертежник-конструктор"]
["15.01.23 Наладчик станков и оборудования в механообработке"]
["15.01.25 Станочник (металлообработка)"]
["15.01.26 Токарь-универсал"]
["15.01.27 Фрезеровщик-универсал"]
["15.01.29 Контролер качества в машиностроении"]
["15.01.29 Контролер станочных и слесарных работ"]
["15.01.30 Слесарь"]
["15.01.31 Мастер контрольно-измерительных приборов и автоматики"]
["15.01.32 Оператор станков с программным управлением"]
["15.01.33 Токарь на станках с числовым программным управлением"]
["15.01.34 Фрезеровщик на станках с числовым программным управлением"]
["15.01.35 Мастер слесарных работ"]
["15.01.36 Дефектоскопист"]
["15.01.37 Слесарь-наладчик контрольно-измерительных приборов и автоматики"]
["15.01.38 Оператор-наладчик металлообрабатывающих станков"]
["15.02.01 Монтаж и техническая эксплуатация промышленного оборудования (по отраслям)"]
["15.02.02 Техническая эксплуатация оборудования для производства электронной техники"]
["15.02.03 Монтаж, техническое обслуживание и ремонт гидравлического и пневматического оборудования (по отраслям)"]
["15.02.03 Техническая эксплуатация гидравлических машин, гидроприводов и гидропневмоавтоматики"]
["15.02.04 Специальные машины и устройства"]
["15.02.05 Техническая эксплуатация оборудования в торговле и общественном питании"]
["15.02.06 Монтаж и техническая эксплуатация холодильно-компрессорных машин и установок (по отраслям)"]
["15.02.06 Монтаж, техническая эксплуатация и ремонт холодильно-компрессорных и теплонасосных машин и установок (по отраслям)"]
["15.02.07 Автоматизация технологических процессов и производств"]
["15.02.07 Автоматизация технологических процессов и производств (по отраслям)"]
["15.02.08 Технология машиностроения"]
["15.02.09 Аддитивные технологии"]
["15.02.10 Мехатроника и мобильная робототехника (по отраслям)"]
["15.02.10 Мехатроника и робототехника (по отраслям)"]
["15.02.11 Техническая эксплуатация и обслуживание роботизированного производства"]
["15.02.12 Монтаж, техническое обслуживание и ремонт промышленного оборудования (по отраслям)"]
["15.02.13 Техническое обслуживание и ремонт систем вентиляции и кондиционирования"]
["15.02.14 Оснащение средствами автоматизации технологических процессов и производств (по отраслям)"]
["15.02.15 Технология металлообрабатывающего производства"]
["15.02.16 Технология машиностроения"]
["15.02.17 Монтаж, техническое обслуживание, эксплуатация и ремонт промышленного оборудования (по отраслям)"]
["15.02.18 Техническая эксплуатация и обслуживание роботизированного производства (по отраслям)"]
["15.02.19 Сварочное производство"]
["18.01.01 Лаборант по физико-механическим испытаниям"]
["18.01.02 Лаборант-эколог"]
["18.01.03 Аппаратчик-оператор экологических установок"]
["18.01.05 Аппаратчик-оператор производства неорганических веществ"]
["18.01.06 Оператор производства стекловолокна, стекловолокнистых материалов и изделий стеклопластиков"]
["18.01.08 Мастер по изготовлению, обработке, отделке деталей и изделий из стекла"]
["18.01.08 Мастер-изготовитель деталей и изделий из стекла"]
["18.01.12 Изготовитель фарфоровых и фаянсовых изделий"]
["18.01.22 Оператор в производстве шин"]
["18.01.24 Мастер шиномонтажной мастерской"]
["18.01.26 Аппаратчик-оператор нефтехимического производства"]
["18.01.27 Машинист технологических насосов и компрессоров"]
["18.01.28 Оператор нефтепереработки"]
["18.01.29 Мастер по обслуживанию магистральных трубопроводов"]
["18.01.31 Машинист машин коксохимического производства"]
["18.01.32 Аппаратчик-оператор азотных производств и продуктов органического синтеза"]
["18.01.33 Лаборант по контролю качества сырья, реактивов, промежуточных продуктов, готовой продукции, отходов производства (по отраслям)"]
["18.01.34 Лаборант по контролю качества сырья, реактивов, промежуточных продуктов, готовой продукции, отходов производства (по отраслям)"]
["18.01.35 Аппаратчик-оператор производства химических соединений"]
["18.02.01 Аналитический контроль качества химических соединений"]
["18.02.03 Химическая технология неорганических веществ"]
["18.02.04 Электрохимическое производство"]
["18.02.05 Производство тугоплавких неметаллических и силикатных материалов и изделий"]
["18.02.06 Химическая технология органических веществ"]
["18.02.07 Технология производства и переработки пластических масс и эластомеров"]
["18.02.09 Переработка нефти и газа"]
["18.02.10 Коксохимическое производство"]
["18.02.11 Технология пиротехнических составов и изделий"]
["18.02.11 Технология производства энергонасыщенных материалов и изделий"]
["18.02.12 Технология аналитического контроля химических соединений"]
["18.02.13 Технология производства изделий из полимерных композитов"]
["18.02.14 Химическая технология производства химических соединений"]
["18.02.15 Биохимическое производство"]
["19.01.01 Аппаратчик-оператор в биотехнологии"]
["19.01.01 Аппаратчик-оператор производства биотехнологической продукции для пищевой промышленности"]
["19.01.02 Лаборант-аналитик"]
["19.01.04 Пекарь"]
["19.01.06 Аппаратчик производства сахара"]
["19.01.07 Кондитер сахаристых изделий"]
["19.01.09 Мастер по эксплуатации, механизации, автоматизации и роботизации технологического оборудования и процессов пищевой промышленности"]
["19.01.09 Наладчик оборудования в производстве пищевой продукции (по отраслям производства)"]
["19.01.10 Мастер производства молочной продукции"]
["19.01.11 Изготовитель мороженого"]
["19.01.12 Переработчик скота и мяса"]
["19.01.14 Оператор процессов колбасного производства"]
["19.01.15 Аппаратчик получения растительного масла"]
["19.01.18 Аппаратчик-оператор производства продуктов питания из растительного сырья"]
["19.01.19 Аппаратчик-оператор производства продуктов питания животного происхождения"]
["19.01.20 Аппаратчик-оператор производства продукции общественного питания массового изготовления и специализированных пищевых продуктов"]
["19.02.01 Биохимическое производство"]
["19.02.02 Технология хранения и переработки зерна"]
["19.02.03 Технология хлеба, кондитерских и макаронных изделий"]
["19.02.04 Технология сахаристых продуктов"]
["19.02.05 Технология бродильных производств и виноделие"]
["19.02.06 Технология консервов и пищеконцентратов"]
["19.02.07 Технология молока и молочных продуктов"]
["19.02.08 Технология мяса и мясных продуктов"]
["19.02.09 Технология жиров и жирозаменителей"]
["19.02.10 Технология продукции общественного питания"]
["19.02.11 Технология продуктов питания из растительного сырья"]
["19.02.12 Технология продуктов питания животного происхождения"]
["19.02.13 Технология продуктов общественного питания массового изготовления и специализированных пищевых продуктов"]
["19.02.14 Эксплуатация, механизация, автоматизация и роботизация технологического оборудования и процессов пищевой промышленности"]
["19.02.15 Биотехнология пищевой промышленности"]
["20.01.01 Пожарный"]
["20.02.01 Рациональное использование природохозяйственных комплексов"]
["20.02.01 Экологическая безопасность природных комплексов"]
["20.02.02 Защита в чрезвычайных ситуациях"]
["20.02.03 Природоохранное обустройство территорий"]
["20.02.04 Пожарная безопасность"]
["20.02.05 Организация оперативного (экстренного) реагирования в чрезвычайных ситуациях"]
["20.02.06 Безопасность на акватории"]
["21.01.01 Оператор нефтяных и газовых скважин"]
["21.01.02 Оператор по ремонту скважин"]
["21.01.03 Бурильщик эксплуатационных и разведочных скважин"]
["21.01.04 Машинист на буровых установках"]
["21.01.07 Бурильщик морского бурения скважин"]
["21.01.08 Машинист на открытых горных работах"]
["21.01.10 Ремонтник горного оборудования"]
["21.01.13 Проходчик"]
["21.01.15 Электрослесарь подземный"]
["21.01.16 Обогатитель полезных ископаемых"]
["21.01.17 Мастер по обслуживанию магистральных трубопроводов"]
["21.02.01 Разработка и эксплуатация нефтяных и газовых месторождений"]
["21.02.02 Бурение нефтяных и газовых скважин"]
["21.02.03 Сооружение и эксплуатация газонефтепроводов и газонефтехранилищ"]
["21.02.04 Землеустройство"]
["21.02.05 Земельно-имущественные отношения"]
["21.02.06 Информационные системы обеспечения градостроительной деятельности"]
["21.02.07 Аэрофотогеодезия"]
["21.02.08 Прикладная геодезия"]
["21.02.09 Гидрогеология и инженерная геология"]
["21.02.10 Геология и разведка нефтяных и газовых месторождений"]
["21.02.11 Геофизические методы поисков и разведки месторождений полезных ископаемых"]
["21.02.12 Технология и техника разведки месторождений полезных ископаемых"]
["21.02.13 Геологическая съемка, поиски и разведка месторождений полезных ископаемых"]
["21.02.14 Маркшейдерское дело"]
["21.02.15 Открытые горные работы"]
["21.02.16 Шахтное строительство"]
["21.02.17 Подземная разработка месторождений полезных ископаемых"]
["21.02.18 Обогащение полезных ископаемых"]
["21.02.19 Землеустройство"]
["21.02.20 Прикладная геодезия"]
["22.01.03 Машинист крана металлургического производства"]
["22.01.04 Контролер металлургического производства"]
["22.01.05 Аппаратчик-оператор в производстве цветных металлов"]
["22.01.08 Оператор прокатного производства"]
["22.01.09 Оператор трубного производства"]
["22.01.11 Оператор металлургического производства"]
["22.02.01 Металлургия черных металлов"]
["22.02.02 Металлургия цветных металлов"]
["22.02.03 Литейное производство черных и цветных металлов"]
["22.02.04 Металловедение и термическая обработка металлов"]
["22.02.05 Обработка металлов давлением"]
["22.02.06 Сварочное производство"]
["22.02.07 Порошковая металлургия, композиционные материалы, покрытия"]
["22.02.08 Металлургическое производство (по видам производства)"]
["23.01.01 Оператор транспортного терминала"]
["23.01.02 Докер-механизатор"]
["23.01.03 Автомеханик"]
["23.01.04 Водитель городского электротранспорта"]
["23.01.06 Машинист дорожных и строительных машин"]
["23.01.07 Машинист крана (крановщик)"]
["23.01.08 Слесарь по ремонту строительных машин"]
["23.01.09 Машинист локомотива"]
["23.01.09 Помощник машиниста (по видам подвижного состава железнодорожного транспорта)"]
["23.01.10 Слесарь по обслуживанию и ремонту подвижного состава"]
["23.01.11 Слесарь-электрик по ремонту электрооборудования подвижного состава (электровозов, электропоездов)"]
["23.01.12 Слесарь-электрик метрополитена"]
["23.01.13 Электромонтер тяговой подстанции"]
["23.01.14 Электромонтер устройств сигнализации, централизации, блокировки (СЦБ)"]
["23.01.15 Оператор поста централизации"]
["23.01.16 Составитель поездов"]
["23.01.17 Мастер по ремонту и обслуживанию автомобилей"]
["23.01.18 Мастер вертикального транспорта"]
["23.01.19 Оператор по обработке перевозочных документов на железнодорожном транспорте"]
["23.01.20 Мастер по комплексному обслуживанию пути рельсового транспорта"]
["23.01.21 Мастер путевых машин"]
["23.01.22 Проводник на железнодорожном транспорте"]
["23.01.23 Электромонтер объектов транспортной инфраструктуры"]
["23.02.01 Организация перевозок и управление на транспорте (по видам)"]
["23.02.02 Автомобиле- и тракторостроение"]
["23.02.03 Техническое обслуживание и ремонт автомобильного транспорта"]
["23.02.04 Техническая эксплуатация подъемно-транспортных, строительных, дорожных машин и оборудования (по отраслям)"]
["23.02.05 Эксплуатация транспортного электрооборудования и автоматики (по видам транспорта, за исключением водного)"]
["23.02.06 Техническая эксплуатация подвижного состава железных дорог"]
["23.02.07 Техническое обслуживание и ремонт автотранспортных средств"]
["23.02.07 Техническое обслуживание и ремонт двигателей, систем и агрегатов автомобилей"]
["23.02.08 Строительство железных дорог, путь и путевое хозяйство"]
["23.02.09 Автоматика и телемеханика на транспорте (железнодорожном транспорте)"]
["24.01.01 Слесарь-сборщик авиационной техники"]
["24.01.02 Электромонтажник авиационной техники"]
["24.01.04 Слесарь по ремонту авиационной техники"]
["24.02.01 Производство летательных аппаратов"]
["24.02.02 Производство авиационных двигателей"]
["24.02.04 Радиотехнические комплексы и системы управления космических летательных аппаратов"]
["25.02.01 Техническая эксплуатация летательных аппаратов и двигателей"]
["25.02.02 Обслуживание летательных аппаратов горюче-смазочными материалами"]
["25.02.03 Техническая эксплуатация электрифицированных и пилотажно-навигационных комплексов"]
["25.02.04 Летная эксплуатация летательных аппаратов"]
["25.02.05 Управление движением воздушного транспорта"]
["25.02.06 Производство и обслуживание авиационной техники"]
["25.02.07 Техническое обслуживание авиационных двигателей"]
["25.02.08 Эксплуатация беспилотных авиационных систем"]
["25.02.09 Организация воздушных перевозок и авиационных работ"]
["25.02.10 Транспортная безопасность воздушного транспорта"]
["26.01.01 Судостроитель-судоремонтник металлических судов"]
["26.01.02 Судостроитель-судоремонтник неметаллических судов"]
["26.01.03 Слесарь-монтажник судовой"]
["26.01.05 Электрорадиомонтажник судовой"]
["26.01.06 Моторист-рулевой"]
["26.01.06 Судоводитель-помощник механика маломерного судна"]
["26.01.07 Матрос"]
["26.01.08 Моторист (машинист)"]
["26.01.09 Моторист судовой"]
["26.01.10 Механик маломерного судна"]
["26.01.12 Электрик судовой"]
["26.01.13 Водолаз"]
["26.02.01 Эксплуатация внутренних водных путей"]
["26.02.02 Судостроение"]
["26.02.03 Судовождение"]
["26.02.04 Монтаж и техническое обслуживание судовых машин и механизмов"]
["26.02.05 Эксплуатация судовых энергетических установок"]
["26.02.06 Эксплуатация судового электрооборудования и средств автоматики"]
["27.01.01 Контролер измерительных приборов"]
["27.02.01 Метрология"]
["27.02.02 Техническое регулирование и управление качеством"]
["27.02.03 Автоматика и телемеханика на транспорте (железнодорожном транспорте)"]
["27.02.04 Автоматические системы управления"]
["27.02.05 Системы и средства диспетчерского управления"]
["27.02.06 Контроль работы измерительных приборов"]
["27.02.06 Метрологический контроль средств измерений"]
["27.02.07 Управление качеством продукции, процессов и услуг (по отраслям)"]
["29.01.01 Скорняк"]
["29.01.02 Обувщик (широкого профиля)"]
["29.01.03 Сборщик обуви"]
["29.01.04 Художник по костюму"]
["29.01.05 Закройщик"]
["29.01.07 Портной"]
["29.01.08 Оператор швейного оборудования"]
["29.01.09 Вышивальщица"]
["29.01.09 Мастер-исполнитель художественной вышивки (по видам)"]
["29.01.10 Модистка головных уборов"]
["29.01.16 Ткач"]
["29.01.17 Оператор вязально-швейного оборудования"]
["29.01.24 Оператор электронного набора и верстки"]
["29.01.25 Переплетчик"]
["29.01.26 Печатник плоской печати"]
["29.01.27 Мастер печатного дела"]
["29.01.28 Мастер по обработке алмазов"]
["29.01.28 Огранщик алмазов в бриллианты"]
["29.01.29 Мастер столярного и мебельного производства"]
["29.01.31 Мастер скорняжных работ"]
["29.01.32 Мастер обувного производства"]
["29.01.33 Мастер по изготовлению швейных изделий"]
["29.01.34 Оператор оборудования швейного производства (по видам)"]
["29.01.35 Оператор оборудования производства текстильных изделий (по видам)"]
["29.01.36 Мастер полиграфического производства"]
["29.02.01 Конструирование, моделирование и технология изделий из кожи"]
["29.02.02 Технология кожи и меха"]
["29.02.03 Конструирование, моделирование и технология изделий из меха"]
["29.02.04 Конструирование, моделирование и технология швейных изделий"]
["29.02.05 Технология текстильных изделий (по видам)"]
["29.02.06 Полиграфическое производство"]
["29.02.07 Производство изделий из бумаги и картона"]
["29.02.08 Технология обработки алмазов"]
["29.02.09 Печатное дело"]
["29.02.10 Конструирование, моделирование и технология изготовления изделий легкой промышленности (по видам)"]
["29.02.11 Полиграфическое производство"]
["31.01.01 Медицинский администратор"]
["31.02.01 Лечебное дело"]
["31.02.02 Акушерское дело"]
["31.02.03 Лабораторная диагностика"]
["31.02.04 Медицинская оптика"]
["31.02.05 Стоматология ортопедическая"]
["31.02.06 Стоматология профилактическая"]
["31.02.07 Стоматологическое дело"]
["32.02.01 Медико-профилактическое дело"]
["33.02.01 Фармация"]
["34.01.01 Младшая медицинская сестра по уходу за больными"]
["34.02.01 Сестринское дело"]
["34.02.02 Медицинский массаж (для обучения лиц с ограниченными возможностями здоровья по зрению)"]
["35.01.01 Мастер по лесному хозяйству"]
["35.01.02 Станочник деревообрабатывающих станков"]
["35.01.03 Станочник-обработчик"]
["35.01.04 Оператор линии и установок в деревообработке"]
["35.01.05 Контролер качества материалов и продукции деревообрабатывающего производства"]
["35.01.05 Контролер полуфабрикатов и изделий из древесины"]
["35.01.06 Машинист машин по производству бумаги и картона"]
["35.01.06 Оператор машин по производству бумаги и картона"]
["35.01.09 Мастер растениеводства"]
["35.01.10 Овощевод защищенного грунта"]
["35.01.11 Мастер сельскохозяйственного производства"]
["35.01.12 Заготовитель продуктов и сырья"]
["35.01.13 Тракторист-машинист сельскохозяйственного производства"]
["35.01.14 Мастер по техническому обслуживанию и ремонту машинно-тракторного парка"]
["35.01.15 Мастер по ремонту и обслуживанию электрооборудования в сельском хозяйстве"]
["35.01.15 Электромонтер по ремонту и обслуживанию электрооборудования в сельскохозяйственном производстве"]
["35.01.16 Мастер по водным биоресурсам и аквакультуре"]
["35.01.16 Рыбовод"]
["35.01.17 Обработчик рыбы и морепродуктов"]
["35.01.19 Мастер садово-паркового и ландшафтного строительства"]
["35.01.20 Пчеловод"]
["35.01.21 Оленевод-механизатор"]
["35.01.23 Хозяйка(ин) усадьбы"]
["35.01.24 Управляющий сельской усадьбой"]
["35.01.25 Оператор-станочник деревообрабатывающего оборудования"]
["35.01.26 Мастер растениеводства"]
["35.01.27 Мастер сельскохозяйственного производства"]
["35.01.28 Мастер столярного и мебельного производства"]
["35.01.29 Слесарь по ремонту лесозаготовительного оборудования"]
["35.01.30 Машинист лесозаготовительных и трелевочных машин"]
["35.01.31 Матрос промысловой команды"]
["35.01.32 Мастер по техническому обеспечению рыболовства"]
["35.01.33 Мастер по техническому обеспечению рыбоводства"]
["35.01.34 Аппаратчик-оператор производства продукции из водных биоресурсов на судах рыбопромыслового флота и береговых предприятиях"]
["35.01.35 Фермер"]
["35.02.01 Лесное и лесопарковое хозяйство"]
["35.02.02 Технология лесозаготовок"]
["35.02.03 Технология деревообработки"]
["35.02.04 Технология комплексной переработки древесины"]
["35.02.05 Агрономия"]
["35.02.06 Технология производства и переработки сельскохозяйственной продукции"]
["35.02.07 Механизация сельского хозяйства"]
["35.02.08 Электрификация и автоматизация сельского хозяйства"]
["35.02.08 Электротехнические системы в агропромышленном комплексе (АПК)"]
["35.02.09 Водные биоресурсы и аквакультура"]
["35.02.09 Ихтиология и рыбоводство"]
["35.02.10 Обработка водных биоресурсов"]
["35.02.11 Промышленное рыболовство"]
["35.02.12 Садово-парковое и ландшафтное строительство"]
["35.02.13 Пчеловодство"]
["35.02.14 Охотоведение и звероводство"]
["35.02.15 Кинология"]
["35.02.16 Эксплуатация и ремонт сельскохозяйственной техники и оборудования"]
["35.02.17 Агромелиорация"]
["35.02.18 Технология переработки древесины"]
["35.02.19 Техническое обеспечение рыбоводства"]
["35.02.20 Технология производства, первичной переработки и хранения сельскохозяйственной продукции"]
["36.01.01 Младший ветеринарный фельдшер"]
["36.01.02 Мастер животноводства"]
["36.01.03 Тренер-наездник лошадей"]
["36.01.04 Пчеловод"]
["36.01.05 Лаборант в области ветеринарии"]
["36.01.06 Мастер оленеводства"]
["36.02.01 Ветеринария"]
["36.02.02 Зоотехния"]
["36.02.03 Зоотехния"]
["36.02.04 Охотоведение и звероводство"]
["36.02.05 Кинология"]
["38.01.01 Оператор диспетчерской (производственно-диспетчерской) службы"]
["38.01.02 Продавец"]
["38.01.02 Продавец, контролер-кассир"]
["38.01.03 Контролер банка"]
["38.02.01 Экономика и бухгалтерский учет (по отраслям)"]
["38.02.02 Страховое дело (по отраслям)"]
["38.02.03 Операционная деятельность в логистике"]
["38.02.04 Коммерция (по отраслям)"]
["38.02.05 Товароведение и экспертиза качества потребительских товаров"]
["38.02.06 Финансы"]
["38.02.07 Банковское дело"]
["38.02.08 Торговое дело"]
["38.02.09 Конгрессно-выставочная деятельность"]
["39.01.01 Социальный работник"]
["39.02.01 Социальная работа"]
["39.02.02 Организация сурдокоммуникации"]
["39.02.02 Сурдокоммуникация"]
["39.02.03 Обеспечение деятельности службы занятости населения"]
["40.02.01 Право и организация социального обеспечения"]
["40.02.02 Правоохранительная деятельность"]
["40.02.03 Право и судебное администрирование"]
["40.02.04 Юриспруденция"]
["42.01.01 Агент рекламный"]
["42.02.01 Реклама"]
["42.02.02 Издательское дело"]
["43.01.01 Официант, бармен"]
["43.01.02 Парикмахер"]
["43.01.03 Бортпроводник судовой"]
["43.01.04 Повар судовой"]
["43.01.05 Оператор по обработке перевозочных документов на железнодорожном транспорте"]
["43.01.06 Проводник на железнодорожном транспорте"]
["43.01.07 Слесарь по эксплуатации и ремонту газового оборудования"]
["43.01.09 Повар, кондитер"]
["43.01.11 Мастер флористического сервиса"]
["43.02.01 Организация обслуживания в общественном питании"]
["43.02.02 Парикмахерское искусство"]
["43.02.03 Стилистика и искусство визажа"]
["43.02.04 Прикладная эстетика"]
["43.02.05 Флористика"]
["43.02.06 Сервис на транспорте (по видам транспорта)"]
["43.02.07 Сервис по химической обработке изделий"]
["43.02.08 Сервис домашнего и коммунального хозяйства"]
["43.02.10 Туризм"]
["43.02.11 Гостиничный сервис"]
["43.02.12 Технология эстетических услуг"]
["43.02.13 Технология парикмахерского искусства"]
["43.02.14 Гостиничное дело"]
["43.02.15 Поварское и кондитерское дело"]
["43.02.16 Туризм и гостеприимство"]
["43.02.17 Технологии индустрии красоты"]
["44.02.01 Дошкольное образование"]
["44.02.02 Преподавание в начальных классах"]
["44.02.03 Педагогика дополнительного образования"]
["44.02.04 Специальное дошкольное образование"]
["44.02.05 Коррекционная педагогика в начальном образовании"]
["44.02.06 Профессиональное обучение (по отраслям)"]
["44.02.07 Преподавание в основном общем образовании (по профилям)"]
["46.01.01 Секретарь"]
["46.01.02 Архивариус"]
["46.01.03 Делопроизводитель"]
["46.02.01 Документационное обеспечение управления и архивоведение"]
["46.02.02 Обеспечение технологического сопровождения цифровой трансформации документированных сфер деятельности"]
["49.02.01 Физическая культура"]
["49.02.02 Адаптивная физическая культура"]
["49.02.03 Спорт"]
["50.02.01 Мировая художественная культура"]
["51.02.01 Народное художественное творчество (по видам)"]
["51.02.02 Социально-культурная деятельность (по видам)"]
["51.02.03 Библиотековедение"]
["51.02.03 Библиотечно-информационная деятельность"]
["52.02.01 Искусство балета"]
["52.02.02 Искусство танца (по видам)"]
["52.02.03 Цирковое искусство"]
["52.02.04 Актерское искусство"]
["52.02.05 Искусство эстрады"]
["53.01.01 Мастер по ремонту и обслуживанию музыкальных инструментов (по видам)"]
["53.02.01 Музыкальное образование"]
["53.02.02 Музыкальное искусство эстрады (по видам)"]
["53.02.03 Инструментальное исполнительство (по видам инструментов)"]
["53.02.04 Вокальное искусство"]
["53.02.05 Сольное и хоровое народное пение"]
["53.02.06 Хоровое дирижирование"]
["53.02.06 Хоровое дирижирование с присвоением квалификаций хормейстер, преподаватель"]
["53.02.07 Теория музыки"]
["53.02.08 Музыкальное звукооператорское мастерство"]
["53.02.09 Театрально-декорационное искусство (по видам)"]
["54.01.01 Исполнитель художественно-оформительских работ"]
["54.01.02 Ювелир"]
["54.01.03 Фотограф"]
["54.01.04 Мастер народных художественных промыслов"]
["54.01.05 Изготовитель художественных изделий из тканей с художественной росписью"]
["54.01.06 Изготовитель художественных изделий из металла"]
["54.01.07 Изготовитель художественных изделий из керамики"]
["54.01.10 Художник росписи по дереву"]
["54.01.11 Художник росписи по ткани"]
["54.01.12 Художник миниатюрной живописи"]
["54.01.13 Изготовитель художественных изделий из дерева"]
["54.01.14 Резчик"]
["54.01.16 Лепщик-модельщик архитектурных деталей"]
["54.01.17 Реставратор строительный"]
["54.01.19 Реставратор памятников каменного и деревянного зодчества"]
["54.01.20 Графический дизайнер"]
["54.01.21 Изготовитель художественных изделий из твердых материалов (по видам, за исключением металла)"]
["54.01.22 Реставратор"]
["54.02.01 Дизайн (по отраслям)"]
["54.02.02 Декоративно-прикладное искусство и народные промыслы (по видам)"]
["54.02.03 Художественное оформление изделий текстильной и легкой промышленности"]
["54.02.04 Реставрация"]
["54.02.05 Живопись (по видам)"]
["54.02.05 Живопись с присвоением квалификаций художник-живописец, преподаватель"]
["54.02.06 Изобразительное искусство и черчение"]
["54.02.07 Скульптура"]
["54.02.08 Техника и искусство фотографии"]
["55.02.01 Театральная и аудиовизуальная техника (по видам)"]
["55.02.02 Анимация (по видам)"]
["55.02.02 Анимация и анимационное кино (по видам)"]
["55.02.03 Кино- и телепроизводство (по видам)"]